bitfinex/quotes_BTCUSD_20241120
["timestamp","ask_amount","ask_price","bid_price","bid_amount"]
[1732127788833,0.5457,93854.0,93851.0,0.031965]
[1732127788834,0.0457,93854.0,93851.0,0.031965]
[1732127789117,0.51,93870.0,93822.0,0.00270779]
[1732127789118,0.10711512,93852.0,93822.0,0.00270779]
[1732127789405,0.10711512,93852.0,93851.0,0.031965]
[1732127789864,0.10711512,93852.0,93822.0,0.0008545]
[1732127790134,0.10711512,93833.0,93822.0,0.0008545]
[1732127790691,0.10711512,93828.0,93822.0,0.0008545]
[1732127791352,0.023,93836.0,93826.0,0.031974]
[1732127791615,0.023,93832.0,93822.0,0.0008545]
[1732127791856,0.13011512,93823.0,93822.0,0.0008545]
[1732127792108,0.13011512,93823.0,93822.0,0.0328295]
[1732127792781,0.01,93845.0,93822.0,0.0328295]
[1732127792782,0.5,93858.0,93838.0,0.031969]
[1732127793028,0.08045,93857.0,93854.0,0.031964]
[1732127793283,0.0465,93862.0,93861.0,0.031962]
[1732127793535,0.1479,93868.0,93822.0,0.0008545]
[1732127793536,0.254433,93868.0,93822.0,0.0008545]
[1732127793762,0.1479,93868.0,93855.0,0.031964]
[1732127793983,0.1479,93868.0,93856.0,0.031963]
[1732127793984,0.10711512,93857.0,93856.0,0.031963]
[1732127794887,0.10711512,93857.0,93856.0,0.03365173]
[1732127795567,0.10711512,93857.0,93856.0,0.00168873]
[1732127795797,0.11782663,93857.0,93811.0,0.0004]
[1732127796014,0.023,93831.0,93820.0,0.031975]
[1732127796241,0.023,93829.0,93824.0,0.031974]
[1732127796454,0.28373929,93832.0,93827.0,0.031973]
[1732127796455,0.13011512,93828.0,93827.0,0.031973]
[1732127797105,0.13011512,93828.0,93827.0,0.03383469]
[1732127798228,0.023,93828.0,93827.0,0.03383469]
[1732127798450,0.13011512,93828.0,93827.0,0.03383469]
[1732127798900,0.23669212,93828.0,93827.0,0.00186169]
[1732127799455,0.23669212,93828.0,93815.0,0.0461899]
[1732127799456,0.023,93827.0,93826.0,0.031974]
[1732127799688,0.10711512,93827.0,93826.0,0.031974]
[1732127799930,0.13011512,93827.0,93826.0,0.03369673]
[1732127800183,0.023,93826.0,93825.0,0.031974]
[1732127800443,0.13011512,93826.0,93825.0,0.031974]
[1732127801409,0.13011512,93826.0,93815.0,0.0142129]
[1732127801410,0.13211512,93826.0,93815.0,0.0142129]
[1732127801635,0.30673929,93816.0,93815.0,0.0142129]
[1732127801862,0.13011512,93816.0,93815.0,0.0461899]
[1732127802099,0.023,93816.0,93815.0,0.0461899]
[1732127802317,0.13011512,93816.0,93815.0,0.0142129]
[1732127802560,0.13011512,93816.0,93815.0,0.0461899]
[1732127802811,0.13011512,93816.0,93815.0,0.0142129]
[1732127803320,0.13011512,93816.0,93815.0,0.0461899]
[1732127803561,0.0017136,93836.0,93835.0,0.031971]
[1732127803794,0.10882872,93836.0,93815.0,0.0142129]
[1732127804026,0.10711512,93831.0,93830.0,0.031972]
[1732127804475,0.10711512,93831.0,93815.0,0.0142129]
[1732127804695,0.28373929,93832.0,93815.0,0.0142129]
[1732127804696,0.10711512,93826.0,93815.0,0.0142129]
[1732127804929,0.10711512,93816.0,93815.0,0.0142129]
[1732127805654,0.13011512,93816.0,93815.0,0.0142129]
[1732127805875,0.23670612,93816.0,93815.0,0.0142129]
[1732127807035,0.23670612,93816.0,93811.0,0.0004]
[1732127807036,0.866096,93812.0,93811.0,0.0004]
[1732127807255,0.28373929,93792.0,93785.0,0.031987]
[1732127807480,0.39085441,93792.0,93785.0,0.031987]
[1732127807690,0.39085441,93792.0,93764.0,0.031995]
[1732127807691,0.39085441,93792.0,93776.0,0.03199]
[1732127807905,0.39085441,93792.0,93786.0,0.031987]
[1732127808117,0.39085441,93792.0,93776.0,0.03199]
[1732127808368,0.39085441,93792.0,93771.0,0.032392]
[1732127808369,0.01,93785.0,93771.0,0.0004]
[1732127808660,0.49948641,93780.0,93771.0,0.0004]
[1732127808888,0.129641,93772.0,93771.0,0.0004]
[1732127809138,0.23675612,93772.0,93771.0,0.0004]
[1732127809430,0.23675612,93772.0,93732.0,0.0008561]
[1732127809431,0.023,93767.0,93732.0,0.0008561]
[1732127809704,0.41385441,93752.0,93749.0,0.032]
[1732127809942,0.41385441,93752.0,93732.0,0.0008561]
[1732127810187,0.63973213,93752.0,93732.0,0.0008561]
[1732127810428,0.023,93741.0,93732.0,0.0008561]
[1732127810692,0.52053441,93738.0,93732.0,0.0008561]
[1732127810934,0.68231996,93738.0,93732.0,0.0008561]
[1732127811171,0.6823203,93738.0,93732.0,0.0008561]
[1732127811412,0.4656403,93738.0,93732.0,0.0008561]
[1732127811654,0.4656403,93738.0,93732.0,0.0328611]
[1732127811918,0.17993274,93738.0,93737.0,0.0328585]
[1732127812448,0.14932884,93738.0,93737.0,0.03464541]
[1732127812685,0.12632884,93738.0,93737.0,0.03464541]
[1732127812926,0.15693274,93738.0,93737.0,0.03464541]
[1732127813597,0.15693274,93738.0,93737.0,0.00264141]
[1732127813822,0.17993274,93738.0,93737.0,0.00264141]
[1732127814042,0.30230601,93738.0,93737.0,0.00264141]
[1732127814275,0.5,93726.0,93720.0,0.032009]
[1732127814563,0.5,93726.0,93713.0,0.032012]
[1732127814564,0.023,93718.0,93717.0,0.032011]
[1732127814785,0.1797636,93718.0,93717.0,0.032011]
[1732127815000,0.1797636,93718.0,93717.0,0.03389818]
[1732127816097,0.1797636,93718.0,93717.0,0.00188718]
[1732127816305,0.1797636,93718.0,93695.0,0.032018]
[1732127816524,0.023,93716.0,93676.0,0.5104]
[1732127816733,0.023,93714.0,93707.0,0.032014]
[1732127816942,0.023,93708.0,93707.0,0.032014]
[1732127817153,0.07250497,93708.0,93707.0,0.032014]
[1732127817574,0.07250497,93708.0,93707.0,0.03401913]
[1732127817575,0.04204037,93708.0,93707.0,0.03401913]
[1732127817987,0.14915549,93708.0,93707.0,0.03401913]
[1732127818192,0.01904037,93708.0,93707.0,0.03401913]
[1732127818832,0.04950497,93729.0,93707.0,0.00200513]
[1732127819044,0.15655209,93728.0,93707.0,0.00200513]
[1732127819272,0.15655209,93728.0,93727.0,0.032007]
[1732127819519,0.15655209,93728.0,93725.0,0.032008]
[1732127819520,0.01901886,93727.0,93725.0,0.032008]
[1732127819722,0.01901886,93727.0,93704.0,0.1]
[1732127819723,0.5,93705.0,93671.0,0.0004]
[1732127819944,0.28373929,93701.0,93671.0,0.0004]
[1732127820163,0.0304046,93698.0,93697.0,0.032018]
[1732127820384,0.28373929,93713.0,93694.0,0.032019]
[1732127820385,0.0304046,93703.0,93700.0,0.032017]
[1732127820618,0.0304046,93703.0,93694.0,0.032019]
[1732127820619,0.15652798,93702.0,93701.0,0.032016]
[1732127820846,0.023,93701.0,93695.0,0.032018]
[1732127821072,0.523,93694.0,93654.0,0.114132]
[1732127821282,0.75584541,93694.0,93681.0,0.064046]
[1732127821498,0.75584541,93694.0,93652.0,0.51047]
[1732127821499,0.76756148,93694.0,93652.0,0.51047]
[1732127821720,0.76756148,93694.0,93652.0,7e-05]
[1732127821721,0.129755,93672.0,93652.0,7e-05]
[1732127821958,0.43285106,93672.0,93652.0,7e-05]
[1732127822230,0.54960606,93672.0,93652.0,7e-05]
[1732127822460,0.71676667,93672.0,93652.0,7e-05]
[1732127822698,0.5,93654.0,93652.0,7e-05]
[1732127822915,0.58602806,93653.0,93652.0,7e-05]
[1732127823343,0.61630963,93653.0,93652.0,7e-05]
[1732127823774,0.50953263,93653.0,93652.0,7e-05]
[1732127824005,0.14911177,93653.0,93652.0,0.032103]
[1732127824235,0.13011512,93653.0,93650.0,0.032034]
[1732127824466,0.28373929,93686.0,93649.0,0.01]
[1732127824740,0.39085441,93650.0,93649.0,0.032034]
[1732127824936,0.10711512,93650.0,93649.0,0.032034]
[1732127825808,0.5,93675.0,93643.0,0.000857]
[1732127825809,0.06528037,93674.0,93643.0,0.000857]
[1732127826038,0.1499,93685.0,93672.0,0.032026]
[1732127826039,0.10711512,93673.0,93672.0,0.032026]
[1732127826252,0.10711512,93673.0,93666.0,0.032028]
[1732127826465,0.10711512,93673.0,93643.0,0.000857]
[1732127826466,0.5,93664.0,93643.0,0.000857]
[1732127826917,0.01,93674.0,93665.0,0.032028]
[1732127827174,0.01,93674.0,93643.0,0.000857]
[1732127827175,0.0017166,93672.0,93671.0,0.032026]
[1732127827667,0.10883172,93672.0,93671.0,0.032026]
[1732127827888,0.0017166,93672.0,93671.0,0.032026]
[1732127828107,0.10883172,93672.0,93671.0,0.032026]
[1732127828323,0.0017166,93672.0,93671.0,0.032026]
[1732127828766,0.10883172,93672.0,93671.0,0.032026]
[1732127829620,0.0017166,93672.0,93671.0,0.03309356]
[1732127829955,0.0017166,93672.0,93671.0,0.032026]
[1732127830698,0.10883172,93672.0,93671.0,0.032026]
[1732127831181,0.0017166,93672.0,93671.0,0.032026]
[1732127832851,0.13183172,93672.0,93671.0,0.032026]
[1732127833078,0.0017166,93672.0,93671.0,0.032026]
[1732127833286,0.13183172,93672.0,93671.0,0.032026]
[1732127833527,0.13183172,93672.0,93644.0,0.042036]
[1732127833528,0.14501489,93672.0,93638.0,0.5104]
[1732127833758,0.13011512,93656.0,93619.0,0.01]
[1732127833977,0.13011512,93656.0,93619.0,0.5104]
[1732127834195,0.5,93664.0,93615.0,0.01]
[1732127834196,0.023,93653.0,93637.0,0.032038]
[1732127834447,0.023,93646.0,93639.0,0.032037]
[1732127834679,0.023,93644.0,93642.0,0.032036]
[1732127834939,0.13011512,93644.0,93643.0,0.032893]
[1732127835433,0.14910649,93644.0,93643.0,0.000857]
[1732127835667,0.14910649,93644.0,93643.0,0.032893]
[1732127835895,0.14910649,93644.0,93643.0,0.000857]
[1732127836120,0.13011512,93644.0,93643.0,0.032893]
[1732127836355,0.13011512,93644.0,93643.0,0.000857]
[1732127836577,0.14910649,93644.0,93643.0,0.032893]
[1732127837011,0.10711512,93644.0,93643.0,0.032893]
[1732127837227,0.10711512,93644.0,93643.0,0.032036]
[1732127837455,0.12610649,93644.0,93641.0,0.032037]
[1732127837731,0.10711512,93643.0,93642.0,0.032036]
[1732127837948,0.12610649,93643.0,93642.0,0.032036]
[1732127838359,0.14910649,93643.0,93642.0,0.032036]
[1732127838799,0.01899137,93643.0,93642.0,0.032036]
[1732127839483,0.01899137,93643.0,93642.0,0.03310385]
[1732127839696,0.01899137,93663.0,93642.0,0.032036]
[1732127839944,0.5,93685.0,93671.0,0.032026]
[1732127840171,0.02082418,93672.0,93671.0,0.032026]
[1732127840912,0.002,93665.0,93655.0,0.032032]
[1732127841134,0.10711512,93657.0,93656.0,0.032032]
[1732127841349,0.10711512,93657.0,93654.0,0.032032]
[1732127841350,0.1262227,93657.0,93654.0,0.032032]
[1732127841562,0.023,93655.0,93649.0,0.032034]
[1732127841781,0.023,93653.0,93652.0,0.032033]
[1732127841996,0.1492227,93653.0,93652.0,0.032033]
[1732127842642,0.01910758,93653.0,93652.0,0.032033]
[1732127842856,0.0017166,93672.0,93652.0,0.032033]
[1732127842857,0.0017166,93672.0,93671.0,0.032026]
[1732127843072,0.12794468,93672.0,93671.0,0.032026]
[1732127843286,0.12794468,93672.0,93669.0,0.032027]
[1732127843504,0.0017166,93672.0,93671.0,0.032026]
[1732127843718,0.02083904,93672.0,93671.0,0.032026]
[1732127843951,0.12795416,93672.0,93671.0,0.032026]
[1732127844163,0.02083904,93672.0,93671.0,0.032026]
[1732127844594,0.12795416,93672.0,93671.0,0.032026]
[1732127844806,0.02083904,93672.0,93671.0,0.032026]
[1732127845018,0.12795416,93672.0,93671.0,0.032026]
[1732127845226,0.12795416,93672.0,93647.0,0.01]
[1732127845227,0.12795416,93672.0,93643.0,0.033106]
[1732127845465,0.10711512,93669.0,93665.0,0.032028]
[1732127845662,0.01912244,93668.0,93653.0,0.032033]
[1732127845875,0.12623756,93667.0,93666.0,0.032028]
[1732127846087,0.15685036,93667.0,93666.0,0.032028]
[1732127846299,0.17985036,93667.0,93666.0,0.032028]
[1732127846513,0.17985036,93667.0,93665.0,0.032028]
[1732127846514,0.023,93666.0,93665.0,0.032029]
[1732127846732,0.17985036,93666.0,93665.0,0.032029]
[1732127846951,0.13011512,93666.0,93664.0,0.032029]
[1732127847175,0.04213467,93666.0,93665.0,0.032029]
[1732127847394,0.023,93671.0,93670.0,0.032027]
[1732127847616,0.0017166,93672.0,93664.0,0.032029]
[1732127847864,0.10711512,93670.0,93669.0,0.032027]
[1732127848117,0.12625649,93670.0,93669.0,0.032027]
[1732127849046,0.14925649,93670.0,93669.0,0.032027]
[1732127849277,0.14925649,93670.0,93635.0,0.1]
[1732127849278,0.023,93669.0,93635.0,0.1]
[1732127849485,0.023,93669.0,93668.0,0.032028]
[1732127849698,0.023,93671.0,93670.0,0.032027]
[1732127849927,0.0421751,93671.0,93670.0,0.032027]
[1732127850143,0.17997022,93671.0,93670.0,0.032027]
[1732127850369,0.04986197,93671.0,93670.0,0.032027]
[1732127850837,0.04986197,93671.0,93670.0,0.042027]
[1732127850838,0.00715997,93671.0,93670.0,0.042027]
[1732127851051,0.002,93714.0,93713.0,0.032012]
[1732127851272,0.10911512,93714.0,93713.0,0.032012]
[1732127852621,0.10711512,93714.0,93713.0,0.032012]
[1732127853907,0.10711512,93714.0,93712.0,0.032012]
[1732127853908,0.023,93713.0,93712.0,0.032012]
[1732127854117,0.10711512,93713.0,93712.0,0.032012]
[1732127854329,0.13011512,93713.0,93712.0,0.032012]
[1732127856767,0.09329161,93734.0,93707.0,0.032014]
[1732127856963,0.28373929,93738.0,93707.0,0.032014]
[1732127856964,0.10711512,93732.0,93731.0,0.032006]
[1732127857205,0.213376,93731.0,93696.0,0.1]
[1732127857422,0.10711512,93725.0,93718.0,0.03201]
[1732127857640,0.10711512,93725.0,93724.0,0.032008]
[1732127857856,0.10711512,93725.0,93697.0,0.032018]
[1732127858079,0.10711512,93725.0,93696.0,0.1]
[1732127858293,0.10711512,93725.0,93713.0,0.032012]
[1732127858545,0.10711512,93725.0,93724.0,0.032008]
[1732127859671,0.09397222,93745.0,93744.0,0.032002]
[1732127859931,0.10711512,93745.0,93742.0,0.02636348]
[1732127860154,0.23493055,93761.0,93721.0,0.032009]
[1732127860155,0.09397222,93760.0,93726.0,0.11]
[1732127860376,0.002,93760.0,93726.0,0.1]
[1732127860603,0.002,93760.0,93711.0,0.01]
[1732127860604,0.39085441,93748.0,93739.0,0.032003]
[1732127860814,0.39085441,93748.0,93741.0,0.032002]
[1732127861047,0.39085441,93748.0,93736.0,0.032004]
[1732127861240,0.13011512,93748.0,93747.0,0.032001]
[1732127861460,0.13011512,93748.0,93735.0,0.032004]
[1732127861461,0.13011512,93748.0,93712.0,0.01]
[1732127861685,0.13011512,93748.0,93708.0,0.01]
[1732127861686,0.023,93747.0,93742.0,0.032002]
[1732127861902,0.023,93745.0,93744.0,0.032001]
[1732127862114,0.13011512,93745.0,93718.0,0.1]
[1732127862343,0.39040729,93749.0,93718.0,0.1]
[1732127862344,0.023,93743.0,93740.0,0.032003]
[1732127862568,0.10711512,93742.0,93741.0,0.032003]
[1732127862787,0.13011512,93742.0,93741.0,0.032003]
[1732127863005,0.10711512,93742.0,93741.0,0.032003]
[1732127864365,0.13011512,93742.0,93741.0,0.032003]
[1732127864585,0.12991473,93742.0,93741.0,0.032003]
[1732127865215,0.0017164,93745.0,93743.0,0.032002]
[1732127865424,0.0017164,93745.0,93744.0,0.032002]
[1732127867209,0.10883152,93745.0,93744.0,0.032002]
[1732127867514,0.13183152,93745.0,93744.0,0.032002]
[1732127870542,0.023,93744.0,93743.0,0.032002]
[1732127870768,0.023,93744.0,93707.0,0.042014]
[1732127870769,0.14329827,93744.0,93707.0,0.042014]
[1732127871013,0.14329827,93744.0,93720.0,0.03201]
[1732127871014,0.023,93729.0,93720.0,0.03201]
[1732127871236,0.023,93729.0,93698.0,0.032017]
[1732127871237,0.023,93723.0,93698.0,0.032017]
[1732127871486,0.023,93723.0,93688.0,0.5104]
[1732127871487,0.023,93723.0,93722.0,0.032009]
[1732127871698,0.023,93723.0,93696.0,0.01]
[1732127871699,0.023,93739.0,93711.0,0.01]
[1732127871872,0.023,93739.0,93738.0,0.032004]
[1732127872081,0.0488,93744.0,93743.0,0.032002]
[1732127872082,0.023,93744.0,93743.0,0.032002]
[1732127872489,0.13011512,93744.0,93743.0,0.032002]
[1732127874616,0.13011512,93744.0,93740.0,0.032003]
[1732127874856,0.0017164,93745.0,93716.0,0.032011]
[1732127874857,0.129676,93742.0,93735.0,0.032005]
[1732127875088,0.2150614,93745.0,93716.0,0.032011]
[1732127875089,0.023,93734.0,93723.0,0.032009]
[1732127875322,0.023,93731.0,93725.0,0.032008]
[1732127875544,0.023,93729.0,93728.0,0.032007]
[1732127875778,0.14836296,93729.0,93728.0,0.032007]
[1732127876009,0.13011512,93729.0,93728.0,0.032007]
[1732127876448,0.01824784,93736.0,93735.0,0.032005]
[1732127876710,0.14836296,93736.0,93735.0,0.032005]
[1732127877142,0.14836296,93736.0,93733.0,0.032005]
[1732127877143,0.01824784,93744.0,93733.0,0.032005]
[1732127877375,0.33253929,93763.0,93733.0,0.032005]
[1732127877376,0.029205,93751.0,93744.0,0.032002]
[1732127877597,0.029205,93762.0,93744.0,0.032002]
[1732127877830,0.10883152,93745.0,93716.0,0.032011]
[1732127878072,0.10711512,93744.0,93725.0,0.0008576]
[1732127878292,0.10711512,93744.0,93743.0,0.032002]
[1732127878507,0.10711512,93744.0,93725.0,0.0008576]
[1732127878508,0.023,93742.0,93725.0,0.0008576]
[1732127878766,0.10711512,93744.0,93725.0,0.0008576]
[1732127878767,0.023,93732.0,93725.0,0.0008576]
[1732127878985,0.023,93732.0,93726.0,0.032008]
[1732127878986,0.023,93730.0,93726.0,0.032008]
[1732127879215,0.213369,93735.0,93725.0,0.0008576]
[1732127879216,0.023,93728.0,93725.0,0.0328656]
[1732127879434,0.023,93728.0,93727.0,0.032007]
[1732127879650,0.07060044,93728.0,93727.0,0.032007]
[1732127879883,0.04760044,93728.0,93727.0,0.032007]
[1732127880144,0.01830786,93728.0,93727.0,0.032007]
[1732127880391,0.12542298,93728.0,93727.0,0.032007]
[1732127880623,0.04760044,93728.0,93727.0,0.032007]
[1732127880827,0.01830786,93728.0,93727.0,0.042007]
[1732127881047,0.28545629,93764.0,93744.0,0.032002]
[1732127881048,0.001717,93764.0,93744.0,0.032002]
[1732127881261,0.03105529,93745.0,93744.0,0.032002]
[1732127881483,0.0017164,93745.0,93744.0,0.032002]
[1732127882132,0.10883152,93745.0,93744.0,0.032002]
[1732127882590,0.13183152,93745.0,93744.0,0.032002]
[1732127883076,0.0247164,93745.0,93744.0,0.032002]
[1732127883522,0.0017164,93745.0,93744.0,0.032002]
[1732127884708,0.0017164,93745.0,93744.0,0.042002]
[1732127884954,0.0017164,93745.0,93744.0,0.052002]
[1732127885233,0.0017164,93745.0,93744.0,0.032002]
[1732127885729,0.10883152,93745.0,93744.0,0.032002]
[1732127885965,0.023,93744.0,93725.0,0.0008576]
[1732127886211,0.10711512,93739.0,93725.0,0.0008576]
[1732127886461,0.023,93742.0,93725.0,0.0008576]
[1732127886462,0.106692,93727.0,93725.0,0.0008576]
[1732127886686,0.13011512,93726.0,93725.0,0.0328656]
[1732127887008,0.023,93725.0,93724.0,0.032008]
[1732127888126,0.0017164,93745.0,93744.0,0.032002]
[1732127888127,0.0247164,93745.0,93744.0,0.032002]
[1732127888361,0.0017164,93745.0,93744.0,0.032002]
[1732127888583,0.13771351,93745.0,93744.0,0.032002]
[1732127889523,0.13183152,93745.0,93744.0,0.032002]
[1732127889745,0.0017164,93745.0,93744.0,0.032002]
[1732127889973,0.0017164,93745.0,93744.0,0.03306861]
[1732127890216,0.0017164,93745.0,93744.0,0.032002]
[1732127891039,0.10883152,93745.0,93721.0,0.01]
[1732127891299,0.0017164,93745.0,93744.0,0.032002]
[1732127891553,0.0017164,93745.0,93739.0,0.032003]
[1732127891815,0.023,93744.0,93743.0,0.032002]
[1732127892310,0.0017164,93745.0,93744.0,0.032002]
[1732127892593,0.09397523,93753.0,93752.0,0.031999]
[1732127892868,0.28192569,93771.0,93745.0,0.032001]
[1732127892869,0.09569183,93766.0,93763.0,0.031995]
[1732127893123,0.01978146,93764.0,93763.0,0.031995]
[1732127894224,0.01978146,93764.0,93755.0,0.031998]
[1732127894225,0.023,93763.0,93754.0,0.031998]
[1732127894518,0.129666,93751.0,93743.0,0.032002]
[1732127895029,0.129666,93751.0,93749.0,0.032]
[1732127895030,0.13011512,93750.0,93749.0,0.032]
[1732127895031,0.14817958,93750.0,93749.0,0.032]
[1732127895273,0.023,93749.0,93743.0,0.032002]
[1732127895526,0.09422622,93755.0,93747.0,0.032001]
[1732127895527,0.14817958,93748.0,93747.0,0.032001]
[1732127895822,0.13011512,93748.0,93747.0,0.032001]
[1732127896094,0.33684221,93748.0,93747.0,0.032001]
[1732127896335,0.5,93737.0,93688.0,0.5104]
[1732127896601,0.106695,93725.0,93691.0,0.51146702]
[1732127896979,0.73185999,93725.0,93705.0,0.032015]
[1732127896984,0.73185999,93725.0,93691.0,0.5104]
[1732127896985,0.97355889,93725.0,93691.0,0.5104]
[1732127897210,0.23592899,93701.0,93700.0,0.032017]
[1732127897467,0.36604411,93701.0,93700.0,0.032017]
[1732127897693,0.71442038,93701.0,93700.0,0.032017]
[1732127897920,1.06280233,93701.0,93700.0,0.032017]
[1732127898153,1.25157833,93701.0,93700.0,0.032017]
[1732127898415,0.023,93700.0,93699.0,0.032017]
[1732127898664,0.71440249,93700.0,93674.0,0.032025]
[1732127898870,0.71440249,93700.0,93690.0,0.03202]
[1732127898871,0.11738301,93691.0,93690.0,0.03202]
[1732127899089,0.023,93690.0,93673.0,0.032026]
[1732127899320,0.44935242,93700.0,93685.0,0.032022]
[1732127899321,0.023,93688.0,93685.0,0.032022]
[1732127899577,0.023,93688.0,93660.0,0.54243]
[1732127899578,0.13011512,93686.0,93674.0,0.032025]
[1732127899812,0.13011512,93686.0,93652.0,0.032033]
[1732127899813,0.0943505,93681.0,93652.0,0.032033]
[1732127900052,0.0943505,93679.0,93677.0,0.032024]
[1732127900287,0.0943505,93691.0,93689.0,0.03202]
[1732127900553,0.13011512,93690.0,93689.0,0.03202]
[1732127900804,0.13011512,93690.0,93688.0,0.032021]
[1732127901075,0.13011512,93689.0,93659.0,0.01]
[1732127901340,0.11733589,93686.0,93685.0,0.032022]
[1732127901571,0.10711512,93686.0,93685.0,0.032022]
[1732127902367,0.34821438,93696.0,93695.0,0.032018]
[1732127902669,0.4553295,93696.0,93695.0,0.032018]
[1732127903152,0.4553295,93696.0,93691.0,0.032019]
[1732127903391,0.10711512,93694.0,93689.0,0.03202]
[1732127903621,0.106747,93679.0,93674.0,0.0008557]
[1732127903856,0.023,93677.0,93674.0,0.0008557]
[1732127904090,0.2166306,93689.0,93674.0,0.0008557]
[1732127904091,0.023,93675.0,93674.0,0.0008557]
[1732127904307,0.13011512,93675.0,93674.0,0.0328807]
[1732127904533,0.13011512,93675.0,93674.0,0.0008557]
[1732127905247,0.23686712,93675.0,93674.0,0.0008557]
[1732127905701,0.13011512,93675.0,93674.0,0.0008557]
[1732127905943,0.13011512,93675.0,93674.0,0.0328807]
[1732127906175,0.10711512,93675.0,93674.0,0.0328807]
[1732127906412,0.023,93674.0,93649.0,0.04228705]
[1732127906628,0.13011512,93673.0,93672.0,0.032026]
[1732127906853,0.023,93672.0,93665.0,0.032028]
[1732127907067,0.13011512,93671.0,93670.0,0.032026]
[1732127907278,0.13011512,93671.0,93667.0,0.032028]
[1732127907279,0.023,93670.0,93667.0,0.032028]
[1732127907513,0.10711512,93669.0,93668.0,0.032028]
[1732127908357,0.023,93668.0,93663.0,0.032029]
[1732127908598,0.023,93666.0,93661.0,0.03203]
[1732127908830,0.023,93666.0,93648.0,0.0328895]
[1732127908831,0.023,93664.0,93663.0,0.032029]
[1732127909055,0.13011512,93664.0,93663.0,0.032029]
[1732127909679,0.10711512,93664.0,93663.0,0.032029]
[1732127910166,0.10711512,93664.0,93648.0,0.0008555]
[1732127910384,0.10711512,93663.0,93659.0,0.03203]
[1732127910594,0.10711512,93663.0,93649.0,0.032034]
[1732127910808,0.10711512,93663.0,93648.0,0.0008555]
[1732127911015,0.10711512,93663.0,93658.0,0.032031]
[1732127911226,0.10711512,93663.0,93656.0,0.032031]
[1732127911450,0.023,93658.0,93652.0,0.032033]
[1732127911667,0.023,93656.0,93650.0,0.032034]
[1732127911886,0.023,93654.0,93653.0,0.032033]
[1732127912104,0.13011512,93654.0,93653.0,0.032033]
[1732127913403,0.13011512,93654.0,93648.0,0.0008555]
[1732127913628,0.10711512,93653.0,93649.0,0.032034]
[1732127913882,0.023,93652.0,93649.0,0.032034]
[1732127914105,0.13011512,93651.0,93650.0,0.032034]
[1732127914375,0.10711512,93651.0,93650.0,0.032034]
[1732127914858,0.28373929,93678.0,93648.0,0.0008555]
[1732127915065,0.28373929,93678.0,93671.0,0.032026]
[1732127915066,0.10711512,93674.0,93671.0,0.032026]
[1732127915552,0.10711512,93674.0,93673.0,0.032026]
[1732127915792,0.10711512,93674.0,93668.0,0.032027]
[1732127916034,0.213524,93666.0,93648.0,0.0008555]
[1732127916287,0.10711512,93656.0,93650.0,0.032033]
[1732127916506,0.10711512,93656.0,93655.0,0.032032]
[1732127917219,0.023,93655.0,93654.0,0.032032]
[1732127917441,0.10711512,93655.0,93654.0,0.032032]
[1732127918848,0.28373929,93685.0,93650.0,0.00106774]
[1732127919096,0.16945373,93689.0,93649.0,0.0008561]
[1732127919097,0.10711512,93666.0,93649.0,0.0008561]
[1732127919336,0.10711512,93656.0,93649.0,0.0008561]
[1732127919584,0.10678,93650.0,93649.0,0.0008561]
[1732127919817,0.106781,93649.0,93648.0,0.00057799]
[1732127920033,0.106781,93649.0,93643.0,0.00107]
[1732127920034,0.718787,93644.0,93643.0,0.00107]
[1732127920247,1.13371833,93644.0,93643.0,0.00107]
[1732127920691,1.13371833,93644.0,93601.0,0.0008557]
[1732127920692,0.92354029,93632.0,93601.0,0.0008557]
[1732127920910,0.629823,93612.0,93601.0,0.0008557]
[1732127921125,0.606835,93602.0,93601.0,0.0008557]
[1732127921347,0.606835,93602.0,93560.0,0.0008557]
[1732127921348,0.5,93566.0,93560.0,0.0008557]
[1732127921627,0.0797,93601.0,93493.0,0.032087]
[1732127921628,0.129922,93526.0,93493.0,0.032087]
[1732127921798,0.129922,93526.0,93472.0,0.52086351]
[1732127921799,0.106935,93514.0,93472.0,0.52086351]
[1732127922025,0.66098003,93514.0,93472.0,0.00046351]
[1732127922253,1.09977141,93514.0,93472.0,0.00046351]
[1732127922482,1.03863251,93514.0,93507.0,0.01934177]
[1732127922719,0.13011512,93508.0,93507.0,0.01934177]
[1732127922970,1.45701453,93508.0,93507.0,0.00695421]
[1732127923223,2.25257604,93508.0,93507.0,0.00695421]
[1732127923447,0.023,93504.0,93472.0,0.00046351]
[1732127923655,0.023,93504.0,93491.0,0.032488]
[1732127923656,0.10711512,93492.0,93491.0,0.032488]
[1732127923887,0.93401453,93492.0,93491.0,0.03441196]
[1732127924125,0.95701453,93492.0,93491.0,0.0004]
[1732127924588,0.93401453,93492.0,93491.0,0.0004]
[1732127924810,0.45203503,93492.0,93491.0,0.021792]
[1732127925791,0.45203503,93492.0,93408.0,0.0144646]
[1732127925792,0.01,93487.0,93408.0,0.0144646]
[1732127926027,0.01,93480.0,93479.0,0.021395]
[1732127926237,0.11911512,93480.0,93479.0,0.021395]
[1732127926463,0.10911512,93480.0,93479.0,0.021395]
[1732127926898,0.10911512,93480.0,93475.0,0.021395]
[1732127926899,0.002,93476.0,93475.0,0.021395]
[1732127927112,0.10911512,93476.0,93475.0,0.021395]
[1732127927750,0.10711512,93476.0,93413.0,0.1]
[1732127928011,0.01,93494.0,93446.0,0.021402]
[1732127928178,0.01,93494.0,93445.0,0.021402]
[1732127928179,0.01,93494.0,93493.0,0.021391]
[1732127928388,0.01,93494.0,93491.0,0.020592]
[1732127928592,0.29373929,93497.0,93491.0,0.020592]
[1732127928593,0.01,93492.0,93491.0,0.021392]
[1732127929009,0.10711512,93492.0,93491.0,0.021392]
[1732127930088,0.10711512,93492.0,93491.0,0.02332547]
[1732127930315,0.0024,93499.0,93498.0,0.02139]
[1732127930575,0.0004,93499.0,93498.0,0.0233056]
[1732127930827,0.0004,93499.0,93484.0,0.1]
[1732127930828,0.002,93480.0,93375.0,0.05339406]
[1732127931049,0.002,93480.0,93293.0,0.3283]